Cogmind - Beta 9.6 @@@ ROGUE MODE // 2020.06.12 @ 13:10:46 Player: Demise Result: Destroyed by G-47 Trooper with Particle Gun Performance ------------- Evolutions (1) 500 Regions Visited (6) 1200 Robots Destroyed (102) 510 Value Destroyed (2235) 2235 Prototype IDs (30) 600 Alien Tech Used (0) 0 Bonus (-86) -86 TOTAL SCORE: 4959 Bonus ------- High Alert Combat Kills 53 Aligned with FarCom 300 Friendly Fire -439 Cogmind --------- Core Integrity 0/400 Matter 104/300 Energy 280/280 System Corruption 0% Temperature Cool (17) Movement Treading (220) Ox3 Location -8/Mines Parts ------- > --- POWER (1) -------- Cooled Ion Engine > --- PROPULSION (2) --- Improved Treads Improved Treads > --- UTILITY (4) ------ Humpback Humpback > --- WEAPON (2) ------- 8R-AWN's Boregun 8R-AWN's Boregun > --- INVENTORY (44) --- Cooled Ion Engine Coolant Injector Medium Storage Unit Large Storage Unit Large Storage Unit High-capacity Storage Unit High-capacity Storage Unit Humpback High-capacity Battery (400) High-capacity Matter Pod (53) Sensor Array Signal Interpreter Advanced Terrain Scanner Terrain Scan Processor Improved Targeting Computer Weapon Cycler ECM Suite 8R-AWN's Armor/EX Improved Shield Generator EX Chip 1 Hacking Suite Hacking Suite EX Chip 2 EX Chip 2 EX Chip 2 PSU Rigger Improved EM Shotgun Improved EM Shotgun Shock Rifle Improved Assault Rifle Improved Assault Rifle Improved Assault Rifle XL Autogun Array Slug Cannon Bore Cannon Shock Bomb Launcher Improved Grenade Launcher Improved Grenade Launcher Katana Peak State ------------ > --- POWER ------------ Cooled Ion Engine > --- PROPULSION ------- Improved Treads Improved Treads > --- UTILITY ---------- Armor Integrity Analyzer 8R-AWN's Armor/EX AS-neutralizer No. 17b > --- WEAPON ----------- 8R-AWN's Boregun 8R-AWN's Boregun > --- INVENTORY -------- Cooled Ion Engine High-capacity Matter Pod Improved Grenade Launcher Katana [Rating: 55] Favorites ----------- Power Cooled Ion Engine Engine Cooled Ion Engine Power Core Light Nuclear Core Propulsion Improved Treads Treads Improved Treads Leg Aluminum Leg Wheel Wheel Utility High-capacity Storage Unit Device Improved Terrain Scanner Storage High-capacity Storage Unit Processor Armor Integrity Analyzer Protection Light Armor Plating Weapon Improved Assault Rifle Energy Gun Small Laser Ballistic Gun Improved Assault Rifle Ballistic Cannon Bore Cannon Launcher Improved Grenade Launcher Special Weapon Plasma Cutter Build | -11 -10 -10 -9 -9 -9 -8 ------- Run | Scr Mat Min Mat Min Exi Min Slots Evolved 2 | . . . 2 . . . Power . | . . . . . . . Propulsion . | . . . . . . . Utility 2 | . . . 2 . . . Weapon . | . . . . . . . Parts Attached 94 | 3 18 6 42 1 24 . Power 9 | . 3 1 5 . . . Engine 6 | . 2 1 3 . . . Core 3 | . 1 . 2 . . . Reactor . | . . . . . . . Propulsion 19 | 2 3 3 10 . 1 . Treads 11 | . 2 . 8 . 1 . Leg 1 | . . 1 . . . . Wheel 7 | 2 1 2 2 . . . Hover . | . . . . . . . Flight . | . . . . . . . Utility 29 | 1 4 . 9 . 15 . Device 7 | . . . 3 . 4 . Storage 13 | 1 4 . 2 . 6 . Processor 2 | . . . . . 2 . Hackware . | . . . . . . . Protection 7 | . . . 4 . 3 . Artifact . | . . . . . . . Weapon 37 | . 8 2 18 1 8 . Energy Gun 18 | . 4 2 9 . 3 . Energy Cannon . | . . . . . . . Ballistic Gun 12 | . 4 . 5 1 2 . Ballistic Cannon 1 | . . . . . 1 . Launcher 1 | . . . . . 1 . Special Weapon 5 | . . . 4 . 1 . Impact Weapon . | . . . . . . . Slashing Weapon . | . . . . . . . Piercing Weapon . | . . . . . . . Special Melee Weapon . | . . . . . . . Unidentified Prototypes 5 | . . . 2 . 3 . Parts Lost 22 | . 2 5 11 . 4 . Power 3 | . 1 1 1 . . . Propulsion 7 | . 1 2 3 . 1 . Utility 4 | . . . 2 . 2 . Weapon 8 | . . 2 5 . 1 . Highest Loss Streak 5 | . 2 5 4 . 4 . Average Slot Usage (%) 94 | . 98 76 97 100 90 77 Engine 10 | . 13 4 9 11 11 11 Treads 19 | . 19 . 17 22 22 22 Wheel 2 | . 7 7 3 . . . Device 3 | . . . 7 . 3 . Storage 29 | . 28 28 29 44 27 22 Protection 2 | . . . 5 . 1 . Energy Gun 6 | . 9 23 10 . 2 . Ballistic Gun 15 | . 18 4 10 22 15 22 Naked Turns . | . . . . . . . Heaviest Build 180 | 15 71 70 110 110 180 180 Greatest Support 46 | 20 40 20 46 46 46 46 Greatest Overweight (x) 22 | . 7 22 8 2 3 3 Average Overweight (x) 2 | . 4 4 3 2 2 3 Largest Inventory Capacity 44 | 8 20 20 32 32 44 44 Average Capacity 25 | 7 17 20 23 32 29 44 Most Carried 44 | 8 20 20 31 32 44 44 Average Carried 24 | 7 17 19 22 31 26 44 Final Capacity 44 | 8 20 20 32 32 44 44 Final Carried 44 | 8 20 19 30 32 44 44 Class Distribution -------------------- 78% | Hauler-Mutant 18% | Mutant 3% | Scavenger-Mutant Dominant Class ---------------- Mutant | -10/Materials Hauler-Mutant | -10/Mines Hauler-Mutant | -9/Materials Hauler-Mutant | -9/Mines Hauler-Mutant | -9/Exiles Hauler-Mutant | -8/Mines Resources | -11 -10 -10 -9 -9 -9 -8 ----------- Run | Scr Mat Min Mat Min Exi Min Matter Collected 2137 | 230 604 78 755 140 286 44 Remotely . | . . . . . . . Salvage Created 3364 | 199 758 192 1816 218 125 56 Parts 240 | 18 55 7 138 17 4 1 Haulers Intercepted 7 | . 2 . 5 . . . Recyclers Shooed 3 | . 3 . . . . . Parts Field Recycled . | . . . . . . . Retrieved Matter . | . . . . . . . Parts Self-Destructed . | . . . . . . . Prevented . | . . . . . . . Kills | -11 -10 -10 -9 -9 -9 -8 ------- Run | Scr Mat Min Mat Min Exi Min Combat Hostiles Destroyed 65 | . 16 3 34 8 3 1 Guns 61 | . 16 3 33 8 . 1 AOE 3 | . . . 1 . 2 . Classes Destroyed 14 | 3 5 . 4 1 1 . Worker 6 | 2 . . 4 . . . Builder 3 | . . . 3 . . . Tunneler 7 | 5 . 1 1 . . . Hauler 7 | . 2 . 5 . . . Recycler 3 | 1 1 . 1 . . . Operator 4 | . 2 . 2 . . . Watcher 6 | . 3 . 3 . . . Swarmer 19 | . 6 . 10 3 . . Grunt 31 | . 10 3 14 3 . 1 Brawler 1 | . . . 1 . . . Duelist 2 | . . . 1 1 . . Sentry 8 | . . . 8 . . . Demolisher 1 | . . . . 1 . . Assembled 3 | . . . . . 3 . Best Kill Streak 7 | 6 3 1 7 4 2 1 Combat Bots Only 5 | . 3 1 5 4 2 1 Max Kills in Single Turn 5 | 1 1 1 5 1 1 1 Gunslinging . | . . . . . . . Exploded 1 | . . . 1 . 1 . Melee . | . . . . . . . Uniques/NPCs Destroyed 2 | . . . . . 2 . EX-HEX (-9/Exiles) 8R-AWN (-9/Exiles) Combat | -11 -10 -10 -9 -9 -9 -8 -------- Run | Scr Mat Min Mat Min Exi Min Damage Taken 4254 | . 690 495 1918 535 495 121 Core 597 | . 125 69 336 20 30 17 Absorbed by Shields 159 | . . . . . 159 . Core Remaining (%) 61 | 100 . 22 . . . . Volleys Fired 467 | 19 90 28 132 20 158 20 Largest 2 | 2 2 2 2 2 2 2 Hottest 100 | 80 80 80 100 46 95 60 Shots Fired 801 | 38 179 53 235 40 216 40 Gun 760 | 38 179 53 226 40 184 40 Cannon 23 | . . . . . 23 . Launcher 4 | . . . . . 4 . Special 14 | . . . 9 . 5 . Kinetic 397 | . 134 40 120 40 23 40 Thermal 108 | 38 45 4 16 . 5 . Explosive 4 | . . . . . 4 . Electromagnetic 292 | . . 9 99 . 184 . Robot Hit Streak 28 | 5 10 14 20 19 28 12 Robot Miss Streak 5 | 3 3 2 4 1 5 4 Penetration Max . | . . . . . . . Secondary Targets 10 | . 4 . 5 1 . . Max Gunslinging Chain 1 | . 1 . 1 1 . . Shots Hit Robots 568 | 21 113 37 157 35 188 17 Core Hits 232 | 9 48 9 77 12 74 3 Critical Hits 24 | . 2 . 3 . 11 8 Critical Kills 2 | . . . 1 . . 1 Critical Parts Destroyed 14 | . 2 . 2 . 3 7 Melee Attacks . | . . . . . . . Impact . | . . . . . . . Slashing . | . . . . . . . Piercing . | . . . . . . . Sneak Attacks . | . . . . . . . Combat Hostiles . | . . . . . . . Follow-up Attacks . | . . . . . . . Damage Inflicted 6276 | 184 999 359 3131 535 827 241 Guns 4757 | 184 999 359 2269 535 170 241 Cannons 286 | . . . . . 286 . Explosions 1228 | . . . 862 . 366 . Melee . | . . . . . . . Ramming . | . . . . . . . Kinetic 3235 | . 711 255 1207 535 286 241 Thermal 1434 | 184 288 24 933 . 5 . Explosive 366 | . . . . . 366 . Electromagnetic 1241 | . . 80 991 . 170 . Impact . | . . . . . . . Slashing . | . . . . . . . Piercing . | . . . . . . . Highest Corruption 2 | . 2 2 . . . . Average Corruption 2 | . 2 2 . . . . Corruption Purged . | . . . . . . . Effects 18 | . 16 2 . . . . Message Errors 9 | . 7 2 . . . . Heat Flow Errors 4 | . 4 . . . . . Energy Discharges 1 | . 1 . . . . . Data Loss (minor) 1 | . 1 . . . . . Targeting Errors 2 | . 2 . . . . . Weapon Failures 1 | . 1 . . . . . Overload Shots . | . . . . . . . Overflow Damage 342 | . . . 339 . 3 . Projectiles . | . . . . . . . Explosions 342 | . . . 339 . 3 . Melee . | . . . . . . . Knockbacks 7 | . . . . . 7 . Impact . | . . . . . . . Kinetic 7 | . . . . . 7 . Secondary . | . . . . . . . Self-Inflicted Damage 369 | . . . 369 . . . Shots 6 | . . . 6 . . . Rammed . | . . . . . . . Targets Rammed . | . . . . . . . Kicked . | . . . . . . . Crushed . | . . . . . . . Highest Temperature 591 | 108 448 62 591 . 324 8 Average Temperature 105 | 40 142 21 90 . 126 5 Received Heat Transfer 1158 | . 315 282 468 57 . 36 Effects 20 | . 8 . 11 . 1 . Shutdowns 4 | . 2 . 2 . . . Energy Bleed 4 | . 1 . 3 . . . Interference 2 | . . . 1 . 1 . Matter Decay 2 | . 1 . 1 . . . Short Circuit 2 | . 1 . 1 . . . Damage (minor) 2 | . 2 . . . . . Damage (major) 3 | . 1 . 2 . . . Damage (core) 1 | . . . 1 . . . Siege Activations . | . . . . . . . Robots Corrupted 1 | . . . . . 1 . Combat Hostiles 1 | . . . . . 1 . Parts Fried 6 | . . . 1 . 5 . Impact Corruptions . | . . . . . . . Robots Melted . | . . . . . . . Combat Hostiles . | . . . . . . . Parts Melted 3 | . 3 . . . . . Heat Transferred 1982 | 425 650 50 812 . 45 . Parts Sabotaged . | . . . . . . . Parts Stolen . | . . . . . . . Parts Stripped . | . . . . . . . Power Chain Reactions 2 | . . . 2 . . . Missiles Intercepted . | . . . . . . . Alert | -11 -10 -10 -9 -9 -9 -8 ------- Run | Scr Mat Min Mat Min Exi Min Peak Influence 512 | 40 241 80 512 179 . 93 Average Influence 158 | 19 76 39 257 85 . 55 Maximum Alert Level 2 | . 1 . 2 . . . Low Security (%) 72 | 100 94 100 43 100 . 100 Level 1 16 | . 5 . 32 . . . Level 2 11 | . . . 23 . . . Level 3 . | . . . . . . . Level 4 . | . . . . . . . Level 5 . | . . . . . . . High Security . | . . . . . . . Max Security . | . . . . . . . Squads Dispatched 10 | . 5 . 4 . . 1 Investigation 6 | . 2 . 3 . . 1 Extermination . | . . . . . . . Reinforcement 4 | . 3 . 1 . . . Assault . | . . . . . . . Garrison . | . . . . . . . Intercept . | . . . . . . . Construction Impeded . | . . . . . . . Haulers Reinforced . | . . . . . . . Stealth | -11 -10 -10 -9 -9 -9 -8 --------- Run | Scr Mat Min Mat Min Exi Min Distress Signals 2 | . . . 2 . . . Communications Jammed . | . . . . . . . Distress Signals . | . . . . . . . Times Spotted 119 | . 36 3 53 10 7 10 Peak Tracking Total 6 | . 3 2 6 6 6 6 Tactical Retreats 18 | . 1 . 11 2 1 3 Traps | -11 -10 -10 -9 -9 -9 -8 ------- Run | Scr Mat Min Mat Min Exi Min Traps Triggered 2 | . 1 . 1 . . . Indirectly . | . . . . . . . Trap Hack Attempts . | . . . . . . . Triggered . | . . . . . . . Disarmed . | . . . . . . . Reprogrammed . | . . . . . . . Reused . | . . . . . . . Traps Extracted . | . . . . . . . Installed . | . . . . . . . Triggered . | . . . . . . . Machines | -11 -10 -10 -9 -9 -9 -8 ---------- Run | Scr Mat Min Mat Min Exi Min Machines Disabled 16 | . . . 8 . 5 3 Max in Single Turn 3 | . . . 3 . 2 1 Machines Sabotaged . | . . . . . . . Garrisons Compromised . | . . . . . . . Overloaded Fab Kills . | . . . . . . . Fab Network Shutdowns . | . . . . . . . Hacking | -11 -10 -10 -9 -9 -9 -8 --------- Run | Scr Mat Min Mat Min Exi Min Machines Accessed 25 | . 8 . 13 1 2 1 Terminals 16 | . 5 . 10 . . 1 Fabricators . | . . . . . . . Repair Stations 2 | . 1 . 1 . . . Recycling Units 4 | . 2 . 2 . . . Scanalyzers . | . . . . . . . Garrison Access . | . . . . . . . Total Hacks 69 | . 22 . 40 1 2 4 Successful 43 | . 15 . 24 1 2 1 Failed 26 | . 7 . 16 . . 3 Catastrophic 1 | . . . 1 . . . Database Lockouts . | . . . . . . . Manual 40 | . 11 . 24 . 1 4 Terminals 55 | . 17 . 34 . . 4 Fabricators . | . . . . . . . Repair Stations 7 | . 3 . 4 . . . Recycling Units 4 | . 2 . 2 . . . Scanalyzers . | . . . . . . . Garrison Access . | . . . . . . . Terminal Hacks 20 | . 6 . 10 1 2 1 Record 1 | . . . . . 1 . Part Schematic 4 | . 1 . 3 . . . Prototype ID Bank 3 | . 2 . 1 . . . Open Door 1 | . . . . 1 . . Level Access Points 1 | . . . 1 . . . Unreport Threat 3 | . 1 . 2 . . . Locate Traps 4 | . 2 . 1 . . 1 Hauler Manifests 1 | . . . 1 . . . Zone Layout 1 | . . . 1 . . . EX-Prototype ID Bank 1 | . . . . . 1 . Fabricator Hacks . | . . . . . . . Repair Station Hacks 5 | . 1 . 4 . . . Scan Component 3 | . 1 . 2 . . . Repair 2 | . . . 2 . . . Recycling Unit Hacks . | . . . . . . . Scanalyzer . | . . . . . . . Garrison Access Hacks . | . . . . . . . Unauthorized Hacks 18 | . 8 . 10 . . . Terminals 14 | . 6 . 8 . . . Track 5 | . 2 . 3 . . . Assimilate 1 | . . . 1 . . . Botnet 6 | . 3 . 3 . . . Operators 2 | . 1 . 1 . . . Fabricators . | . . . . . . . Repair Stations . | . . . . . . . Recycling Units 4 | . 2 . 2 . . . Tunnel 4 | . 2 . 2 . . . Scanalyzers . | . . . . . . . Garrison Access . | . . . . . . . Data Cores Recovered . | . . . . . . . Used . | . . . . . . . Hacking Detections 17 | . 6 . 10 . . 1 Full Trace Events 3 | . 2 . . . . 1 Feedback Events . | . . . . . . . Feedback Blocked . | . . . . . . . Robot Schematics Acquired . | . . . . . . . Robots Built . | . . . . . . . Matter . | . . . . . . . Time . | . . . . . . . Total Robot Build Rating . | . . . . . . . Part Schematics Acquired 4 | . 1 . 3 . . . Parts Built . | . . . . . . . Matter . | . . . . . . . Time . | . . . . . . . Total Part Build Rating . | . . . . . . . Parts Repaired 2 | . . . 2 . . . Time 83 | . . . 83 . . . Parts Recycled . | . . . . . . . Recycled Matter . | . . . . . . . Retrieved Matter . | . . . . . . . Retrieved Components . | . . . . . . . Parts Scanalyzed . | . . . . . . . Part Schematics Acquired . | . . . . . . . Parts Damaged . | . . . . . . . Bothacking | -11 -10 -10 -9 -9 -9 -8 ------------ Run | Scr Mat Min Mat Min Exi Min Used RIF Installer . | . . . . . . . Robots Hacked . | . . . . . . . Non-combat . | . . . . . . . Combat . | . . . . . . . Robot Hacks Applied . | . . . . . . . Relay Couplers Released . | . . . . . . . Robots Rewired . | . . . . . . . Allies Hacked . | . . . . . . . Hacks Repelled . | . . . . . . . Allies | -11 -10 -10 -9 -9 -9 -8 -------- Run | Scr Mat Min Mat Min Exi Min Total Allies 2 | . . . 1 1 . . Largest Group 1 | . . . 1 1 . . Highest-Rated Group 31 | . . . 10 31 . . Highest-Rated Ally 31 | . . . 10 31 . . Total Orders . | . . . . . . . Ally Attacks 12 | . . . . . 12 . Total Damage 623 | . . . . . 623 . Kills 5 | . . . . . 5 . Allies Corrupted . | . . . . . . . Allies Melted . | . . . . . . . Turrets Deployed 3 | . . . . . 3 . Intel | -11 -10 -10 -9 -9 -9 -8 ------- Run | Scr Mat Min Mat Min Exi Min Robot Analysis Total . | . . . . . . . Derelict Logs Recovered 2 | . . 1 . 1 . . Drone Launches . | . . . . . . . Drone Recoveries . | . . . . . . . Exploration | -11 -10 -10 -9 -9 -9 -8 ------------- Run | Scr Mat Min Mat Min Exi Min Turns Passed 9355 | 136 1527 354 2894 1032 3151 261 Spaces Moved 4005 | 74 758 120 1205 473 1287 88 Core 3 | . . 3 . . . . Treads 3016 | . 285 . 883 473 1287 88 Legs 71 | 22 . 49 . . . . Wheels 915 | 52 473 68 322 . . . Hover . | . . . . . . . Flight . | . . . . . . . Fastest Speed 80 | 80 80 110 110 200 160 220 Average Speed 187 | 91 156 213 186 200 202 220 Slowest Speed 1150 | 120 200 1150 240 200 220 220 Overloaded Moves . | . . . . . . . Propulsion Burnouts . | . . . . . . . Robots Hopped . | . . . . . . . Cave-ins Triggered . | . . . . . . . Exploration Rate (%) 55 | 5 99 33 93 79 68 14 Regions Visited 6 Branch Regions 4 Pre-discovered Areas 6 | . 2 1 2 . 1 . Known Exits Taken . | . . . . . . . Unknown Exits Taken 6 | 1 1 1 1 1 1 . Scrap Searched 3 | . . 1 . 1 . 1 Spaces Dug 9 | . . . 9 . . . Terrain Destroyed 119 | . . . 76 . 25 18 Melee . | . . . . . . . Projectile 37 | . . . 9 . 10 18 AOE 82 | . . . 67 . 15 . Actions | -11 -10 -10 -9 -9 -9 -8 --------- Run | Scr Mat Min Mat Min Exi Min Total 5129 | 105 956 172 1618 522 1640 116 Wait 275 | . 45 14 165 17 28 6 Move 3999 | 73 757 119 1204 472 1286 88 Hop . | . . . . . . . Pick Up 151 | 6 23 2 38 7 74 1 Fast Attach 32 | 1 4 4 12 . 11 . Attach 31 | 2 3 2 13 1 10 . Detach 20 | . 1 1 6 . 12 . Swap 31 | . 11 . 17 . 3 . Drop 123 | 4 22 2 31 5 58 1 Fire 467 | 19 90 28 132 20 158 20 Melee . | . . . . . . . Ram . | . . . . . . . Kick . | . . . . . . . Crush . | . . . . . . . Escape Stasis . | . . . . . . . Rewire . | . . . . . . . Trap . | . . . . . . . Miscellaneous . | . . . . . . . Route ------- -11/Scrapyard -10/Materials (discovered 4 exits: *Mat x3 / [*Min]) -10/Mines -9/Materials (discovered 5 exits: *Mat x3 / *Min x2) -9/Mines (discovered 3 exits: *Mat x2 / *Exi) -9/Exiles -8/Mines History --------- Turn | Location | Event 17 | -11/Scrapyard | Discovered new exit (range 3) 137 | -11/Scrapyard | Entered Materials 308 | -10/Materials | Build established: Mutant 479 | -10/Materials | Discovered new exit (range 5) 812 | -10/Materials | Discovered new exit (range 8) 1049 | -10/Materials | Discovered new exit (range 10) 1238 | -10/Materials | Discovered new exit (range 13) 1279 | -10/Materials | Build established: Hauler-Mutant 1664 | -10/Materials | Entered Mines 1679 | -10/Mines | Core integrity fell below 50% 1690 | -10/Mines | Met a Derelict bent on vengeance 1753 | -10/Mines | Lost 5 parts (1p2n2w) 1936 | -10/Mines | Learned location of Zion (-7) 2003 | -10/Mines | Discovered new exit (range 8) 2018 | -10/Mines | Entered Materials 2018 | -9/Materials | Evolved 2 slots: Utility x2 2735 | -9/Materials | Repaired Imp. Assault Rifle 2768 | -9/Materials | Repaired Imp. Treads 2902 | -9/Materials | Identified exit to Materials 3044 | -9/Materials | Discovered new exit (range 7) 3279 | -9/Materials | Discovered new exit (range 12) 3363 | -9/Materials | Lost 3 parts (1n1u1w) 3742 | -9/Materials | Core integrity fell below 50% 3775 | -9/Materials | Lost 4 parts (1n1u2w) 4448 | -9/Materials | Core integrity fell below 20% 4912 | -9/Materials | Entered Mines 4913 | -9/Mines | Assembled infested the area 4918 | -9/Mines | Assisted by a Guerilla fighting off Assembled 4979 | -9/Mines | Discovered exit to Materials (range 5) 5014 | -9/Mines | Met a Derelict who couldn't figure out how to use a Trap Extractor 5301 | -9/Mines | Discovered exit to Materials (range 6) 5533 | -9/Mines | A weapon hastily lodged in a ceiling crevice suddenly fell to the ground 5594 | -9/Mines | Received a Mining Laser from a helpful Derelict 5717 | -9/Mines | Learned Materials emergency access door positions 5916 | -9/Mines | Deemed a non-threat by the Exiles lab entrance 5918 | -9/Mines | Discovered new exit (range 5) 5944 | -9/Mines | Entered Exiles 5994 | -9/Exiles | Met 8R-AWN 6024 | -9/Exiles | Met EX-HEX 6303 | -9/Exiles | Met EX-DEC 6599 | -9/Exiles | Discovered new exit (range 15) 7024 | -9/Exiles | Met EX-BIN 7055 | -9/Exiles | Aligned with FarCom system 7057 | -9/Exiles | Given EX-Vault access code 7108 | -9/Exiles | Opened EX-Vault 7119 | -9/Exiles | Found Deploy-a-Sentry 7122 | -9/Exiles | Found Deploy-a-Sentry 7125 | -9/Exiles | Found Deploy-a-Sentry 7135 | -9/Exiles | Found PSU Rigger 7189 | -9/Exiles | Warned to stay clear of 0b10 Research branches 7272 | -9/Exiles | DAS Turret deployed 7274 | -9/Exiles | DAS Turret deployed 7691 | -9/Exiles | Attacked by the Exiles 7693 | -9/Exiles | Allies destroyed EX-HEX 7712 | -9/Exiles | DAS Turret deployed 7777 | -9/Exiles | Lost 4 parts (1n2u1w) 7904 | -9/Exiles | Build established: Mutant 8288 | -9/Exiles | Destroyed 8R-AWN 8294 | -9/Exiles | Found Prototype Ballistic Gun 8294 | -9/Exiles | Identified 8R-AWN's Boregun 8299 | -9/Exiles | Found 8R-AWN's Boregun 8304 | -9/Exiles | Found Prototype Protection 8304 | -9/Exiles | Identified 8R-AWN's Armor/EX 8308 | -9/Exiles | Found Prototype Device 8308 | -9/Exiles | Identified AS-neutralizer No. 17b 8672 | -9/Exiles | Build established: Hauler-Mutant 8836 | -9/Exiles | Found XL Autogun Array 9095 | -9/Exiles | Stole two prototypes: PSU Rigger, XL Autogun Array 9095 | -9/Exiles | Entered Mines 9103 | -8/Mines | NK-0LA came to Exiles' defense 9356 | -8/Mines | Destroyed by G-47 Trooper with Particle Gun Last Messages --------------- 09299_ G-50 Soldier suffers critical hit. 09299_ Destroyed Hvy. Laser. 09322_ HV Slug penetrates Wall. 09339_ HV Slug penetrates Earth. 09342_ HV Slug penetrates Wall. 09342_ HV Slug penetrates G-47 Trooper. 09345_ HV Slug penetrates Wall. 09345_ HV Slug penetrates Earth. 09348_ HV Slug penetrates G-47 Trooper. 09348_ G-47 Trooper suffers critical hit. 09348_ G-47 Trooper destroyed. 09348_ HV Slug penetrates Earth. 09351_ HV Slug penetrates NK-0LA. 09351_ HV Slug penetrates Earth. 09351_ HV Slug penetrates NK-0LA. 09351_ HV Slug penetrates Earth. 09354_ HV Slug penetrates Wall. 09354_ HV Slug penetrates Earth. 09354_ HV Slug penetrates Wall. 09354_ HV Slug penetrates Earth. Map ----- +----------------------------------------------------+ | ????????????????????????????????????????????????? | | ????????????????????????????????????????????????? | | ????????????????????????????????????????????????? | | ????????????????????????????????????????????????? | | ????????????????????????????????????????????????? | | ????????????????????????????????????????????????? | | ????????????????????????????????????????????????? | | ????????????????????????????????????????????????? | | ????????????????????????????????????????????????? | | ????????????????????????????????????????????????? | | ????????????????????????????????????????????????? | | ????????????????????????????????????????????????? | | ????????????????????????????????????????????????? | | ????????????????????????????????????????????????? | | ????????????????????????????????????????????????? | | ????????????????????????????????????????????????? | | ???????????#????????????????????????????????????? | | ???????????# ????####?????????????????????????? | | ????????????# ### ##???????????????????????? | | ?????????????? ##??????????????????????? | | ????????##???????? #######????????????????? | | ???????## #??????????# ?????????? | | ???????# ######????## ######"#????????????????? | | ???????# #######r####;########???????????? | | ????????# "" x /= ; #???????????? | | ????????# @ =g!; #??????????? | | ????????# """ ###########;;;g# #??????????????? | | ????????# ##????????????# #????????????????? | | ????????## #?????????????# #????????????????? | | ?????????### #?????????????# #????????????????? | | ????????###### #?????????????# #????????????????? | | ????????# #??# #?????????????# #????????????????? | | ????????#"#### #??????????#### ########?????????? | | ????????# #?????????## #?????????? | | ????????# ######?????????#T """ #?????????? | | ????????# #??????????????## "" """ #?????????? | | ????????# #???????????????# """ #?????????? | | ????????# #???????????????# #?????????? | | ????????# #???????????????# #?????????? | | ????????# #???????????????# #?????????? | | ????????# #???????????????#############?????????? | | ????????# #?????????????????????????????????????? | | ???????? ?????????????????????????????????????? | | ????????###?????????????????????????????????????? | | ????????????????????????????????????????????????? | | ????????????????????????????????????????????????? | | ????????????????????????????????????????????????? | | ????????????????????????????????????????????????? | | ????????????????????????????????????????????????? | | ????????????????????????????????????????????????? | +----------------------------------------------------+ Best States ------------- Heat Dissipation 42 Energy Generation 14 Energy Capacity 280 Matter Stores 389 Matter Capacity 500 Sight Range 16 Terrain Scan Range 20 Terrain Scan Density 10 Armor Coverage 1000 Resistance: EX 90 Power Shielding 33 Evasion (%) 44 Targeting Accuracy 6 Armor Integrity Analysis 33 Recoil Reduction 2 Item Schematics ----------------- Hcp. Storage Unit | -10/Materials | Hacked Hcp. Battery | -9/Materials | Hacked Hcp. Matter Pod | -9/Materials | Hacked Salvage Targeting Computer | -9/Materials | Hacked Robot Schematics ------------------ None Fabricated ------------ Nothing Alien Tech Used ----------------- None Achievements -------------- None Challenges ------------ None Game ------ Seed RecyclingModifiedPerforator Manual? 0 Play Time 01:13:11 Cumulative 226.3 hours Start 2020.06.12 @ 10:21:24 End 2020.06.12 @ 13:10:46 Sessions 3 Manual Loads 0 Difficulty Rogue Special Mode None Game No. 295 Rogue 284 Adventurer 11 Explorer 0 Win Type - Total 0 Types 0/0/0/0/0/0/0 Lore% 53 Gallery% 66 Achievement% 45 Wizard Run 0 Options --------- ASCII 0 Keyboard 1 Movement Numpad Keybinds 0 Fullscreen 1 Font 12/Terminus Map View 83x54 Tactical HUD 1 Map Filters NONE Filters NONE Steam 1 RUN: 14266272-72c9-4833-81a0-8d1aa88ba440